bitfinex/quotes_BTCUSD_20250417
["timestamp","ask_amount","ask_price","bid_price","bid_amount"]
[1744923626862,0.14286381,85027.0,85026.0,8.54798165]
[1744923627063,0.09586381,85027.0,85026.0,8.54798165]
[1744923631686,0.09686381,85027.0,85026.0,8.54798165]
[1744923632563,0.09686381,85027.0,85026.0,8.3647415]
[1744923634414,0.09686381,85027.0,85026.0,8.10422933]
[1744923639860,0.09686381,85027.0,85026.0,7.94727363]
[1744923649534,0.09786381,85027.0,85026.0,7.94727363]
[1744923651314,0.09586381,85027.0,85026.0,7.94727363]
[1744923661613,0.09386381,85027.0,85026.0,7.94727363]
[1744923671621,0.09486381,85027.0,85026.0,7.94727363]
[1744923678754,0.14196381,85027.0,85026.0,7.71205147]
[1744923679170,0.26141172,85027.0,85026.0,7.37205147]
[1744923680346,0.26141172,85027.0,85026.0,7.37105147]
[1744923680347,0.30751172,85027.0,85026.0,7.37105147]
[1744923701744,0.30751172,85027.0,85026.0,7.00819161]
[1744923708772,0.30851172,85027.0,85026.0,7.00819161]
[1744923709409,0.3195194,85027.0,85026.0,7.00819161]
[1744923711384,0.3175194,85027.0,85026.0,7.00819161]
[1744923719579,0.71587374,85027.0,85026.0,5.53609522]
[1744923719728,0.67306025,85027.0,85026.0,4.61561189]
[1744923720831,0.69508058,85027.0,85026.0,4.61561189]
[1744923722309,0.76559058,85027.0,85026.0,4.61561189]
[1744923722503,0.69508058,85027.0,85026.0,4.61561189]
[1744923724018,0.69508058,85027.0,85026.0,4.48030254]
[1744923725796,0.67306025,85027.0,85026.0,4.48030254]
[1744923727925,0.67134279,85027.0,85026.0,4.48030254]
[1744923731039,0.79504279,85027.0,85026.0,4.48030254]
[1744923731502,0.67134279,85027.0,85026.0,4.48030254]
[1744923732599,0.74185279,85027.0,85026.0,4.48030254]
[1744923733656,0.8613007,85027.0,85026.0,4.48030254]
[1744923734071,0.86555279,85027.0,85026.0,3.94378439]
[1744923734415,0.88751072,85027.0,85026.0,3.94378439]
[1744923735923,0.76381072,85027.0,85026.0,3.94378439]
[1744923739195,0.76381072,85027.0,85026.0,3.53098439]
[1744923742300,0.90133072,85027.0,85026.0,3.53098439]
[1744923745061,1.31413072,85027.0,85026.0,3.11818439]
[1744923745844,1.43783072,85027.0,85026.0,3.11818439]
[1744923746098,1.43783072,85027.0,85026.0,2.91535381]
[1744923747103,1.43783072,85027.0,85026.0,2.69718116]
[1744923749452,1.43783072,85027.0,85026.0,2.53536085]
[1744923749798,1.41587279,85027.0,85026.0,2.53536085]
[1744923751624,1.41687279,85027.0,85026.0,2.53536085]
[1744923754881,1.43888974,85027.0,85026.0,2.53536085]
[1744923755586,1.41687279,85027.0,85026.0,2.53536085]
[1744923757413,1.5363207,85027.0,85026.0,2.53536085]
[1744923757827,1.41687279,85027.0,85026.0,2.53536085]
[1744923769555,1.11492194,85027.0,85026.0,2.53536085]
[1744923769803,0.77492194,85027.0,85026.0,2.63106085]
[1744923770042,0.77492194,85027.0,85026.0,2.86628301]
[1744923770263,0.77492194,85027.0,85026.0,2.63106085]
[1744923770944,0.76391426,85027.0,85026.0,2.63106085]
[1744923771452,0.76191426,85027.0,85026.0,2.63106085]
[1744923774467,0.99713366,85027.0,85026.0,2.63106085]
[1744923774914,1.01167451,85027.0,85026.0,2.53636085]
[1744923776143,1.02265752,85027.0,85026.0,2.53636085]
[1744923777465,1.01167451,85027.0,85026.0,2.53636085]
[1744923783422,0.76191426,85027.0,85026.0,2.53636085]
[1744923789482,0.76191426,85027.0,85026.0,2.30904819]
[1744923791977,0.62439426,85027.0,85026.0,2.30904819]
[1744923797896,0.62439426,85027.0,85026.0,2.04344081]
[1744923811097,0.76175426,85027.0,85026.0,2.04344081]
[1744923814731,0.62439426,85027.0,85026.0,2.04344081]
[1744923827993,0.62439426,85027.0,85026.0,2.03344081]
[1744923831265,0.62439426,85027.0,85026.0,2.03244081]
[1744923837268,0.62439426,85027.0,85026.0,1.79104671]
[1744923840668,0.62439426,85027.0,85026.0,1.78683971]
[1744923862075,0.76163426,85027.0,85026.0,1.78683971]
[1744923875840,0.76163426,85027.0,85026.0,1.59910183]
[1744923878868,0.80763426,85027.0,85026.0,1.59910183]
[1744923879066,0.82317511,85027.0,85026.0,1.59910183]
[1744923881508,0.89371511,85027.0,85026.0,1.59910183]
[1744923881730,0.82417511,85027.0,85026.0,1.59910183]
[1744923885156,1.33322302,85027.0,85026.0,1.03450857]
[1744923885360,1.38322302,85027.0,85026.0,1.03450857]
[1744923885559,1.26377511,85027.0,85026.0,1.03450857]
[1744923889271,1.27377511,85027.0,85026.0,1.03450857]
[1744923891218,1.27277511,85027.0,85026.0,1.03450857]
[1744923891425,1.27377511,85027.0,85026.0,1.03450857]
[1744923892684,1.39322302,85027.0,85026.0,1.03450857]
[1744923893048,1.27377511,85027.0,85026.0,1.03450857]
[1744923894841,2.37381511,85027.0,85026.0,1.03450857]
[1744923895259,2.37381511,85027.0,85026.0,0.98749739]
[1744923896752,2.44435511,85027.0,85026.0,0.98749739]
[1744923900470,2.44435511,85027.0,85026.0,0.57469739]
[1744923901664,2.44435511,85027.0,85026.0,0.04278028]
[1744923901862,2.44435511,85027.0,85026.0,1e-08]
[1744923902119,2.45435511,85027.0,85026.0,1e-08]
[1744923903325,0.0117647,85000.0,84997.0,0.0475]
[1744923903497,0.23530795,84995.0,84994.0,0.0482]
[1744923903706,0.35475586,84995.0,84994.0,0.0492]
[1744923904594,0.35475586,84995.0,84994.0,0.04925796]
[1744923904973,0.36675049,84995.0,84994.0,0.04925796]
[1744923905348,0.36675049,84995.0,84994.0,0.00105796]
[1744923905569,0.01176636,84988.0,84985.0,0.00207316]
[1744923905773,0.11944791,84987.0,84985.0,0.01397442]
[1744923911256,0.11944791,84987.0,84985.0,0.00220764]
[1744923911916,0.35477993,84987.0,84985.0,0.00220764]
[1744923912133,0.35477993,84987.0,84985.0,0.00013448]
[1744923912694,0.13398876,84986.0,84985.0,0.00013448]
[1744923914471,0.11944791,84986.0,84985.0,0.00013448]
[1744923914689,0.11944791,84986.0,84985.0,0.28127012]
[1744923926535,0.001,84995.0,84994.0,0.23531072]
[1744923926738,0.12044791,84995.0,84994.0,0.28241072]
[1744923931478,0.12044791,84995.0,84994.0,0.28587507]
[1744923931942,0.12044791,84995.0,84994.0,0.23877507]
[1744923935235,0.12044791,84995.0,84994.0,0.13877507]
[1744923943616,0.12044791,84995.0,84993.0,0.19057463]
[1744923943792,0.001,84995.0,84994.0,0.00300683]
[1744923944021,0.12044791,84995.0,84994.0,0.00300683]
[1744923945116,0.12044791,84995.0,84994.0,0.23831755]
[1744923946143,0.12044791,84995.0,84994.0,0.05157237]
[1744923946278,0.12044791,84995.0,84994.0,0.05403993]
[1744923947172,0.12144791,84995.0,84994.0,0.05403993]
[1744923951214,0.12044791,84995.0,84994.0,0.05157237]
[1744923951357,0.11944791,84995.0,84994.0,0.05157237]
[1744923951563,0.12044791,84995.0,84994.0,0.05157237]
[1744923954153,0.01176595,84991.0,84987.0,0.23532886]
[1744923954356,0.11944791,84990.0,84989.0,0.01176622]
[1744923954580,0.11944791,84990.0,84988.0,0.23781027]
[1744923954789,0.11944791,84990.0,84987.0,0.24709536]
[1744923954996,0.11944791,84990.0,84989.0,0.00248399]
[1744923955144,0.11944791,84990.0,84988.0,0.23532597]
[1744923955351,0.11944791,84990.0,84989.0,0.00248461]
[1744923959922,0.11944791,84990.0,84989.0,0.23532457]
[1744923960077,0.11944791,84990.0,84989.0,0.23761218]
[1744923961523,0.11944791,84990.0,84989.0,0.23532457]
[1744923961759,0.12044791,84990.0,84989.0,0.23532457]
[1744923962340,0.12044791,84990.0,84987.0,0.24709536]
[1744923963095,0.01176636,84988.0,84985.0,0.00013448]
[1744923963298,0.35477801,84987.0,84985.0,0.00013448]
[1744923963682,0.02202356,84986.0,84985.0,0.00013448]
[1744923963999,0.13045969,84986.0,84985.0,0.00013448]
[1744923964532,0.11944791,84986.0,84985.0,0.00013448]
[1744923968483,0.11944791,84986.0,84984.0,0.04826797]
[1744923968708,0.11944791,84985.0,84984.0,0.04871642]
[1744923973470,0.11944791,84985.0,84984.0,0.00044845]
[1744923976718,0.35478355,84985.0,84984.0,0.00044845]
[1744923979668,0.11944791,84985.0,84984.0,0.00044845]
[1744923991705,0.12044791,84985.0,84984.0,0.00044845]
[1744924005964,0.12044791,84985.0,84984.0,0.00035981]
[1744924017606,0.45208355,84985.0,84984.0,0.00035981]
[1744924018138,0.49663879,84985.0,84984.0,0.00035981]
[1744924020066,0.48513615,84985.0,84984.0,0.00035981]
[1744924020615,0.47411862,84985.0,84984.0,0.00035981]
[1744924020997,0.46403535,84985.0,84984.0,0.00035981]
[1744924021191,0.45208355,84985.0,84984.0,0.00035981]
[1744924022437,0.46308894,84985.0,84984.0,0.00035981]
[1744924025934,0.47485572,84985.0,84980.0,0.05631966]
[1744924026142,0.11944791,84981.0,84980.0,0.06813192]
[1744924034052,0.11944791,84981.0,84977.0,0.14878063]
[1744924034262,0.01176705,84983.0,84979.0,0.23534959]
[1744924034441,0.11944791,84980.0,84979.0,0.2471172]
[1744924036522,0.1194927,84980.0,84979.0,0.2471172]
[1744924036814,0.2562527,84980.0,84979.0,0.2471172]
[1744924045225,0.2562527,84980.0,84979.0,0.01176761]
[1744924047464,0.2672694,84980.0,84979.0,0.01176761]
[1744924048397,0.2893033,84980.0,84979.0,0.01176761]
[1744924050824,0.2672694,84980.0,84979.0,0.01176761]
[1744924051067,0.2562527,84980.0,84979.0,0.01176761]
[1744924051698,0.2572527,84980.0,84979.0,0.01176761]
[1744924053069,0.2572527,84980.0,84978.0,0.01176775]
[1744924053273,0.13121552,84979.0,84975.0,0.2479722]
[1744924053473,0.13121552,84979.0,84976.0,0.01261102]
[1744924053838,0.13121552,84979.0,84976.0,0.24796978]
[1744924054239,0.11944791,84977.0,84976.0,0.000843]
[1744924054453,0.15250228,84977.0,84976.0,0.000843]
[1744924055957,0.26354313,84977.0,84976.0,0.000843]
[1744924056381,0.26454313,84977.0,84976.0,0.000843]
[1744924062630,0.67734313,84977.0,84976.0,0.000843]
[1744924063613,0.65530665,84977.0,84976.0,0.000843]
[1744924064634,0.64428876,84977.0,84976.0,0.000843]
[1744924065377,0.64528876,84977.0,84976.0,0.000843]
[1744924066469,0.65627822,84977.0,84976.0,0.000843]
[1744924066728,0.72681822,84977.0,84976.0,0.000843]
[1744924071203,0.72781822,84977.0,84976.0,0.000843]
[1744924072806,0.79517176,84977.0,84976.0,0.000843]
[1744924072961,0.72781822,84977.0,84976.0,0.000843]
[1744924073404,1.82841822,84977.0,84976.0,0.000843]
[1744924079472,0.23540212,84961.0,84960.0,0.000843]
[1744924079678,0.50599088,84961.0,84960.0,0.000843]
[1744924080874,0.51698034,84961.0,84960.0,0.000843]
[1744924081616,0.51798034,84961.0,84960.0,0.000843]
[1744924082796,0.51798034,84961.0,84960.0,1e-08]
[1744924082797,0.98098034,84961.0,84960.0,1e-08]
[1744924083019,0.97998034,84961.0,84960.0,1e-08]
[1744924084932,0.96899088,84961.0,84960.0,1e-08]
[1744924085773,0.97806664,84961.0,84960.0,1e-08]
[1744924087171,1.04860664,84961.0,84960.0,1e-08]
[1744924087475,0.97806664,84961.0,84960.0,1e-08]
[1744924091117,0.84142664,84961.0,84960.0,1e-08]
[1744924091320,0.97806664,84961.0,84960.0,1e-08]
[1744924091932,1.21491455,84961.0,84960.0,1e-08]
[1744924092138,1.21691455,84961.0,84960.0,1e-08]
[1744924093052,1.21691455,84961.0,84955.0,0.0008434]
[1744924093053,0.23641598,84956.0,84955.0,1e-08]
[1744924093267,0.23641598,84956.0,84943.0,0.0008432]
[1744924093268,0.08614085,84951.0,84943.0,0.0008432]
[1744924093482,0.25498876,84951.0,84943.0,0.0008432]
[1744924094549,0.25498876,84951.0,84950.0,0.00097779]
[1744924096896,0.66778876,84951.0,84950.0,0.00097779]
[1744924097579,1.76866876,84951.0,84950.0,0.00097779]
[1744924101434,1.90530876,84951.0,84950.0,0.00097779]
[1744924106083,2.02910876,84951.0,84950.0,0.00097779]
[1744924106295,1.90530876,84951.0,84950.0,0.00097779]
[1744924109632,1.93676553,84951.0,84950.0,0.00097779]
[1744924110243,1.90530876,84951.0,84950.0,0.00097779]
[1744924111601,1.90630876,84951.0,84950.0,0.00097779]
[1744924111804,1.76966876,84951.0,84950.0,0.00097779]
[1744924112013,1.90522876,84951.0,84950.0,0.00097779]
[1744924112613,1.90622876,84951.0,84950.0,0.00097779]
[1744924113032,1.63512791,84951.0,84950.0,0.00097779]
[1744924113255,1.77068791,84951.0,84950.0,0.00097779]
[1744924113450,0.2354825,84932.0,84930.0,0.09859687]
[1744924113669,0.25600791,84931.0,84927.0,0.01177481]
[1744924114069,0.25600791,84931.0,84927.0,0.2472705]
[1744924114447,0.25600791,84931.0,84929.0,0.23548919]
[1744924114936,0.25600791,84931.0,84928.0,0.24726651]
[1744924115180,0.23549158,84929.0,84925.0,0.01177509]
[1744924115416,0.11944791,84928.0,84926.0,0.24811595]
[1744924115627,0.11944791,84928.0,84926.0,0.24911595]
[1744924116007,0.25600791,84928.0,84926.0,0.24911595]
[1744924116435,0.25600791,84928.0,84927.0,0.0301]
[1744924122220,0.25600791,84928.0,84926.0,0.0018434]
[1744924122577,0.49150284,84928.0,84926.0,0.0018434]
[1744924124139,0.13656,84927.0,84926.0,0.0018434]
[1744924124389,0.25600791,84927.0,84926.0,0.0018434]
[1744924131298,0.25600791,84927.0,84926.0,0.0008434]
[1744924131739,0.25600791,84927.0,84926.0,0.23634254]
[1744924131941,0.25600791,84927.0,84926.0,0.0008434]
[1744924156777,0.25700791,84927.0,84926.0,0.0008434]
[1744924163253,0.001,84927.0,84926.0,0.00319823]
[1744924163507,0.0484,84948.0,84942.0,0.23545478]
[1744924163784,1.35692791,84943.0,84942.0,0.23545478]
[1744924164490,1.35692791,84943.0,84942.0,0.05991721]
[1744924166154,1.22044791,84943.0,84942.0,0.05991721]
[1744924166381,1.35692791,84943.0,84942.0,0.05991721]
[1744924169176,1.22044791,84943.0,84942.0,0.05991721]
[1744924175251,1.31814791,84943.0,84942.0,0.05991721]
[1744924177702,1.31800558,84943.0,84942.0,0.05991721]
[1744924185132,1.26990558,84943.0,84942.0,0.05991721]
[1744924185358,1.22030558,84943.0,84942.0,0.05991721]
[1744924188631,1.22030558,84943.0,84939.0,0.23546158]
[1744924188632,1.22030558,84943.0,84941.0,0.23545755]
[1744924188753,0.11944791,84942.0,84941.0,0.23545755]
[1744924206837,0.0008432,84964.0,84963.0,0.23539658]
[1744924207033,0.12029111,84964.0,84963.0,0.23539658]
[1744924207226,0.12042547,84964.0,84962.0,0.23539935]
[1744924207437,0.16474791,84963.0,84962.0,0.23539935]
[1744924214254,0.16474791,84963.0,84961.0,0.24717054]
[1744924214657,0.01177024,84960.0,84950.0,0.23543206]
[1744924214881,0.05707135,84952.0,84948.0,0.0117719]
[1744924215120,0.16524791,84951.0,84947.0,0.01177204]
[1744924215282,0.16524791,84951.0,84949.0,0.23543309]
[1744924215505,0.16524791,84951.0,84948.0,0.24720741]
[1744924215917,0.16524791,84951.0,84949.0,0.23543363]
[1744924217626,0.01177232,84945.0,84942.0,0.01177273]
[1744924217829,0.01177232,84945.0,84941.0,0.23645504]
[1744924217830,0.16474791,84944.0,84941.0,0.001]
[1744924218033,0.01177287,84941.0,84936.0,0.23546865]
[1744924218230,0.11944791,84940.0,84939.0,0.01177315]
[1744924218945,0.11944791,84940.0,84939.0,0.24723564]
[1744924220033,0.11834791,84940.0,84939.0,0.24723564]
[1744924221725,0.11834791,84940.0,84939.0,0.24723624]
[1744924223533,0.11834791,84940.0,84936.0,0.01177357]
[1744924223711,0.11834791,84940.0,84937.0,0.01177343]
[1744924225510,0.11834791,84940.0,84937.0,0.24723946]
[1744924225705,0.11834791,84940.0,84938.0,0.23546349]
[1744924228527,0.11834791,84940.0,84937.0,0.22599211]
[1744924229061,0.11834791,84940.0,84938.0,0.23546349]
[1744924231459,0.11834791,84940.0,84939.0,0.00661893]
[1744924231765,0.11834791,84940.0,84938.0,0.23546349]
[1744924231972,0.11834791,84940.0,84939.0,0.00667266]
[1744924232172,0.11834791,84940.0,84938.0,0.23546349]
[1744924232331,0.11834791,84940.0,84939.0,0.00667266]
[1744924232531,0.11834791,84940.0,84938.0,0.23546349]
[1744924232737,0.11834791,84940.0,84939.0,0.0140227]
[1744924232933,0.11834791,84940.0,84939.0,0.00735004]
[1744924234145,0.11834791,84940.0,84939.0,0.01402367]
[1744924235862,0.11834791,84940.0,84939.0,0.00667363]
[1744924236216,0.11834791,84940.0,84938.0,0.05932327]
[1744924236524,0.11834791,84940.0,84939.0,0.00583943]
[1744924236891,0.11834791,84940.0,84938.0,0.05932327]
[1744924237320,0.11834791,84940.0,84939.0,0.00583845]
[1744924237520,0.11834791,84940.0,84938.0,0.05932327]
[1744924237878,0.11834791,84940.0,84939.0,0.00583845]
[1744924238268,0.11834791,84940.0,84938.0,0.05932327]
[1744924238588,0.11834791,84940.0,84939.0,0.00583943]
[1744924239012,0.11834791,84940.0,84938.0,0.05932327]
[1744924239317,0.11834791,84940.0,84939.0,0.00583943]
[1744924239674,0.11834791,84940.0,84938.0,0.05932327]
[1744924239874,0.11834791,84940.0,84939.0,0.00583943]
[1744924240195,0.11834791,84940.0,84938.0,0.05932327]
[1744924240395,0.11834791,84940.0,84939.0,0.00583943]
[1744924240780,0.11834791,84940.0,84938.0,0.05932327]
[1744924240978,0.11834791,84940.0,84939.0,0.00583845]
[1744924241161,0.11834791,84940.0,84938.0,0.05932327]
[1744924241356,0.11834791,84940.0,84939.0,0.00583845]
[1744924241580,0.11834791,84940.0,84938.0,0.05932327]
[1744924241790,0.11834791,84940.0,84939.0,0.00584575]
[1744924242223,0.11834791,84940.0,84938.0,0.05932327]
[1744924242421,0.11834791,84940.0,84939.0,0.00584672]
[1744924242628,0.11834791,84940.0,84938.0,0.05932327]
[1744924242854,0.11834791,84940.0,84939.0,0.00584672]
[1744924243022,0.11834791,84940.0,84938.0,0.05932327]
[1744924243237,0.11834791,84940.0,84939.0,0.00584672]
[1744924243576,0.11834791,84940.0,84938.0,0.05932327]
[1744924243924,0.11834791,84940.0,84939.0,0.00584575]
[1744924244340,0.11834791,84940.0,84938.0,0.05932327]
[1744924244504,0.11834791,84940.0,84939.0,0.00584672]
[1744924244849,0.11834791,84940.0,84938.0,0.05932327]
[1744924245006,0.11834791,84940.0,84939.0,0.00584672]
[1744924245486,0.11834791,84940.0,84938.0,0.05932327]
[1744924245789,0.11834791,84940.0,84939.0,0.00584672]
[1744924246082,0.11834791,84940.0,84938.0,0.05932327]
[1744924246329,0.11834791,84940.0,84939.0,0.00584672]
[1744924246734,0.11834791,84940.0,84938.0,0.05932327]
[1744924247031,0.11834791,84940.0,84939.0,0.00584672]
[1744924247171,0.11834791,84940.0,84938.0,0.05932327]
[1744924247383,0.11834791,84940.0,84939.0,0.00584575]
[1744924247762,0.11834791,84940.0,84938.0,0.05932327]
[1744924247915,0.11834791,84940.0,84939.0,0.00584672]
[1744924248120,0.11934791,84940.0,84939.0,0.00584672]
[1744924248283,0.11934791,84940.0,84938.0,0.05932327]
[1744924248485,0.11934791,84940.0,84939.0,0.00584672]
[1744924249004,0.11934791,84940.0,84938.0,0.05932327]
[1744924249196,0.11934791,84940.0,84939.0,0.00584672]
[1744924249582,0.11934791,84940.0,84938.0,0.05932327]
[1744924249787,0.11934791,84940.0,84939.0,0.00584575]
[1744924250015,0.11934791,84940.0,84938.0,0.05932327]
[1744924250213,0.11934791,84940.0,84939.0,0.00584672]
[1744924250655,0.11934791,84940.0,84938.0,0.05932327]
[1744924250854,0.11934791,84940.0,84939.0,0.00584672]
[1744924251211,0.11834791,84940.0,84938.0,0.05932327]
[1744924251413,0.11934791,84940.0,84939.0,0.00584672]
[1744924251634,0.11934791,84940.0,84938.0,0.05932327]
[1744924251848,0.11934791,84940.0,84939.0,0.00585383]
[1744924252518,0.11934791,84940.0,84938.0,0.05932327]
[1744924252738,0.11934791,84940.0,84939.0,0.00601317]
[1744924253167,0.11934791,84940.0,84938.0,0.05932327]
[1744924253381,0.11934791,84940.0,84939.0,0.00601317]
[1744924253602,0.11934791,84940.0,84938.0,0.05932327]
[1744924253745,0.11934791,84940.0,84939.0,0.00601317]
[1744924253965,0.11934791,84940.0,84938.0,0.05932327]
[1744924254206,0.11934791,84940.0,84939.0,0.0060122]
[1744924254403,0.11934791,84940.0,84938.0,0.05932327]
[1744924254565,0.11934791,84940.0,84939.0,0.00601317]
[1744924254762,0.11934791,84940.0,84938.0,0.05932327]
[1744924255147,0.11934791,84940.0,84939.0,0.0060122]
[1744924255421,0.11934791,84940.0,84938.0,0.05932327]
[1744924255619,0.11934791,84940.0,84939.0,0.00601317]
[1744924256038,0.11934791,84940.0,84938.0,0.05932327]
[1744924256186,0.11934791,84940.0,84939.0,0.00601317]
[1744924256388,0.11934791,84940.0,84938.0,0.05932327]
[1744924256629,0.11934791,84940.0,84939.0,0.0060122]
[1744924256849,0.11934791,84940.0,84938.0,0.05932327]
[1744924257081,0.11934791,84940.0,84939.0,0.00601317]
[1744924257438,0.11934791,84940.0,84938.0,0.05932327]
[1744924257634,0.11934791,84940.0,84939.0,0.00601317]
[1744924258139,0.11934791,84940.0,84938.0,0.05932327]
[1744924258341,0.11934791,84940.0,84939.0,0.00601317]
[1744924258744,0.11934791,84940.0,84938.0,0.05932327]
[1744924258954,0.11934791,84940.0,84939.0,0.00601317]
[1744924259323,0.11934791,84940.0,84938.0,0.05932327]
[1744924259523,0.11934791,84940.0,84939.0,0.00601317]
[1744924259964,0.11934791,84940.0,84938.0,0.05932327]
[1744924260301,0.11934791,84940.0,84939.0,0.00601317]
[1744924260433,0.11934791,84940.0,84938.0,0.05932327]
[1744924260661,0.11934791,84940.0,84939.0,0.00601317]
[1744924260866,0.11934791,84940.0,84938.0,0.05932327]
[1744924261070,0.11934791,84940.0,84939.0,0.00601317]
[1744924261427,0.11934791,84940.0,84938.0,0.05932327]
[1744924261619,0.11934791,84940.0,84939.0,0.00601317]
[1744924261837,0.11934791,84940.0,84938.0,0.05932327]
[1744924262045,0.11934791,84940.0,84939.0,0.00601317]
[1744924262199,0.11934791,84940.0,84938.0,0.05932327]
[1744924262398,0.11934791,84940.0,84939.0,0.0060122]
[1744924262605,0.01177357,84936.0,84931.0,0.01177426]
[1744924262954,0.23549078,84930.0,84914.0,0.01839877]
[1744924263154,0.21074791,84929.0,84921.0,0.01377565]
[1744924263434,0.0462,84927.0,84921.0,0.002]
[1744924263611,0.0462,84927.0,84921.0,0.01377565]
[1744924263612,0.16564791,84927.0,84921.0,0.01377565]
[1744924263737,0.16572168,84927.0,84921.0,0.002]
[1744924263936,0.16572168,84927.0,84922.0,0.01177551]
[1744924264659,0.16572168,84927.0,84923.0,0.01177537]
[1744924265060,0.16572168,84927.0,84922.0,0.01177551]
[1744924265463,0.16572168,84927.0,84921.0,0.002]
[1744924265885,0.16572168,84927.0,84921.0,0.01377565]
[1744924266486,0.16572168,84927.0,84921.0,0.002]
[1744924266858,0.18026253,84927.0,84921.0,0.002]
[1744924267888,0.16572168,84927.0,84921.0,0.01377565]
[1744924268126,0.16572168,84927.0,84922.0,0.01177551]
[1744924268626,0.16572168,84927.0,84924.0,0.01177523]
[1744924268827,0.16572168,84927.0,84923.0,0.01177537]
[1744924269331,0.16572168,84927.0,84926.0,0.01184271]
[1744924271295,0.16572168,84927.0,84926.0,0.00690163]
[1744924276228,0.16572168,84927.0,84926.0,0.0008434]
[1744924276469,0.22896253,84927.0,84926.0,0.0008434]
[1744924276686,0.64176253,84927.0,84926.0,0.0008434]
[1744924276858,0.72678142,84927.0,84926.0,0.0008434]
[1744924277070,0.71236253,84927.0,84926.0,0.0008434]
[1744924277776,0.73433967,84927.0,84926.0,0.0008434]
[1744924278292,0.17894085,84922.0,84921.0,0.001]
[1744924278474,0.29838876,84922.0,84921.0,0.001]
[1744924278885,0.3203659,84922.0,84921.0,0.001]
[1744924279150,0.7341659,84922.0,84921.0,0.001]
[1744924279322,0.32066495,84917.0,84916.0,0.0004217]
[1744924279544,0.96879,84917.0,84916.0,0.0004217]
[1744924281362,0.34398714,84909.0,84907.0,0.0004215]
[1744924281496,1.01235505,84909.0,84907.0,0.0004215]
[1744924281710,1.01235505,84909.0,84903.0,1e-08]
[1744924281711,0.24733234,84906.0,84903.0,1e-08]
[1744924281905,0.53504892,84904.0,84903.0,1e-08]
[1744924282371,0.55702606,84904.0,84903.0,1e-08]
[1744924282574,0.55602606,84904.0,84903.0,1e-08]
[1744924282777,0.55702606,84904.0,84903.0,1e-08]
[1744924283667,0.64815336,84904.0,84903.0,1e-08]
[1744924284025,0.24743128,84873.0,84870.0,0.05034144]
[1744924284239,0.24743128,84873.0,84871.0,0.00633731]
[1744924284240,0.13123035,84872.0,84871.0,0.00633731]
[1744924284443,0.13123035,84872.0,84869.0,0.0004215]
[1744924284685,0.13123035,84872.0,84871.0,0.00633731]
[1744924284884,0.13123035,84872.0,84869.0,0.0004215]
[1744924285093,0.3668811,84872.0,84871.0,0.00633731]
[1744924285247,0.23565409,84871.0,84869.0,0.0004215]
[1744924285461,0.11944791,84870.0,84869.0,0.00087039]
[1744924286466,0.13123063,84870.0,84860.0,0.75078395]
[1744924286673,0.13123063,84870.0,84865.0,0.01233981]
[1744924287368,0.13123063,84870.0,84866.0,0.00637892]
[1744924287712,0.13123063,84870.0,84865.0,0.01233981]
[1744924287938,0.13123063,84870.0,84867.0,0.00637892]
[1744924288174,0.01178286,84869.0,84865.0,0.01233981]
[1744924288528,0.11944791,84868.0,84866.0,0.00637795]
[1744924288732,0.11944791,84868.0,84865.0,0.01233981]
[1744924288967,0.11944791,84868.0,84867.0,0.00637698]
[1744924289189,0.11944791,84868.0,84865.0,0.01233981]
[1744924289484,0.11944791,84868.0,84866.0,0.00637698]
[1744924289689,0.11944791,84868.0,84865.0,0.01233981]
[1744924289922,0.11944791,84868.0,84867.0,0.00637698]
[1744924290119,0.11944791,84868.0,84865.0,0.01233981]
[1744924290340,0.11944791,84868.0,84867.0,0.00637795]
[1744924290560,0.11944791,84868.0,84866.0,0.00637698]
[1744924290782,0.11944791,84868.0,84865.0,0.01233981]
[1744924291040,0.11944791,84868.0,84867.0,0.00649901]
[1744924291235,0.11944791,84868.0,84865.0,0.01233981]
[1744924291377,0.11944791,84868.0,84866.0,0.00649901]
[1744924291823,0.11944791,84868.0,84865.0,0.01233981]
[1744924292307,0.11944791,84868.0,84866.0,0.00649901]
[1744924292514,0.11944791,84868.0,84866.0,0.23566516]
[1744924292777,0.11944791,84868.0,84867.0,0.00649901]
[1744924293093,0.11944791,84868.0,84865.0,0.24800629]
[1744924293323,0.11944791,84868.0,84867.0,0.00649999]
[1744924293523,0.11944791,84868.0,84865.0,0.24800629]
[1744924293727,0.11944791,84868.0,84867.0,0.00649999]
[1744924293923,0.11944791,84868.0,84865.0,0.24800629]
[1744924294153,0.11944791,84868.0,84867.0,0.00649999]
[1744924294389,0.11944791,84868.0,84866.0,0.00649901]
[1744924294591,0.11944791,84868.0,84867.0,0.00649999]
[1744924295046,0.11944791,84868.0,84865.0,0.24800629]
[1744924295252,0.11944791,84868.0,84866.0,0.00649901]
[1744924295452,0.23566286,84867.0,84865.0,0.00055639]
[1744924295675,0.11944791,84866.0,84865.0,0.00055639]
[1744924297477,0.11944791,84866.0,84865.0,0.00706882]
[1744924302059,0.11944791,84866.0,84865.0,0.00055639]
[1744924302260,0.11944791,84866.0,84865.0,0.00710319]
[1744924307299,0.11944791,84866.0,84865.0,0.00055639]
[1744924308689,0.11944791,84866.0,84865.0,0.00713808]
[1744924311436,0.12044791,84866.0,84865.0,0.00713808]
[1744924314707,0.12044791,84866.0,84865.0,0.24280649]
[1744924315805,0.12044791,84866.0,84865.0,0.00713808]
[1744924316122,0.12044791,84866.0,84865.0,0.24280649]
[1744924316330,0.001,84866.0,84865.0,0.58280649]
[1744924316525,0.001,84866.0,84865.0,0.61560649]
[1744924316943,0.001,84866.0,84865.0,0.61660649]
[1744924318458,0.001,84866.0,84865.0,0.58380649]
[1744924321045,0.001,84866.0,84865.0,0.341]
[1744924321266,0.001,84866.0,84865.0,0.58247221]
[1744924321703,0.13612,84878.0,84877.0,0.23563509]
[1744924321914,0.25656791,84878.0,84877.0,0.23563509]
[1744924322121,0.25656791,84878.0,84877.0,0.24145058]
[1744924326967,0.25656791,84878.0,84877.0,0.22685058]
[1744924327149,0.25656791,84878.0,84877.0,0.23188637]
[1744924336509,0.25656791,84878.0,84877.0,0.00503579]
[1744924336934,0.25656791,84878.0,84875.0,0.24741999]
[1744924337143,0.11944791,84877.0,84875.0,0.24741999]
[1744924338311,0.11944791,84877.0,84875.0,0.01178203]
[1744924338489,0.11944791,84877.0,84875.0,0.24742071]
[1744924341824,0.11944791,84877.0,84876.0,0.00011178]
[1744924347371,0.11944791,84877.0,84876.0,0.00510085]
[1744924351932,0.12044791,84877.0,84876.0,0.00510085]
[1744924355017,0.12044791,84877.0,84876.0,0.01612547]
[1744924356929,0.12044791,84877.0,84876.0,0.00510085]
[1744924358182,0.12044791,84877.0,84876.0,0.00342782]
[1744924360980,0.12044791,84877.0,84875.0,0.07977431]
[1744924361178,0.12044791,84877.0,84876.0,0.00303457]
[1744924362940,0.12044791,84877.0,84876.0,0.0148065]
[1744924364594,0.12044791,84877.0,84876.0,0.00303457]
[1744924368647,0.001,84877.0,84876.0,0.00539086]
[1744924368860,0.001,84877.0,84876.0,0.00303457]
[1744924369998,0.001,84877.0,84876.0,0.00539058]